fUSD/lending_fUSD_20250904
["ID","MTS","AMOUNT","RATE_DAILY","PERIOD"]
[383484557,1756957861592,-400.0,0.00021917,2]
[383484558,1756957861602,-419.2,0.00021917,2]
[383484559,1756957861612,-400.0,0.00021917,2]
[383484560,1756957861622,-400.0,0.00021917,2]
[383484561,1756957861632,-400.0,0.00021917,2]
[383484562,1756957861641,-400.0,0.00021917,2]
[383484563,1756957861651,-400.0,0.00021917,2]
[383484564,1756957861660,-400.0,0.00021917,2]
[383484565,1756957861670,-400.0,0.00021917,2]
[383484566,1756957861681,-400.0,0.00021917,2]
[383484567,1756957861690,-400.0,0.00021917,2]
[383484568,1756957861700,-400.0,0.00021917,2]
[383484569,1756957861710,-400.0,0.00021917,2]
[383484570,1756957861719,-400.0,0.00021917,2]
[383484571,1756957861730,-400.0,0.00021917,2]
[383484572,1756957861741,-160.179626,0.00021918,2]
[383484573,1756957861752,-279.207985,0.00021918,2]
[383484574,1756957861761,-279.207985,0.00021918,2]
[383484575,1756957861771,-279.207985,0.00021918,2]
[383484576,1756957861781,-279.207985,0.00021918,2]
[383484577,1756957861790,-279.207985,0.00021918,2]
[383484578,1756957861799,-279.207985,0.00021918,2]
[383484579,1756957861809,-279.207985,0.00021918,2]
[383484580,1756957861819,-279.207985,0.00021918,2]
[383484581,1756957861829,-279.207985,0.00021918,2]
[383484582,1756957861842,-279.207985,0.00021918,2]
[383484583,1756957861854,-279.207985,0.00021918,2]
[383484584,1756957861864,-279.207985,0.00021918,2]
[383484585,1756957861875,-279.207985,0.00021918,2]
[383484586,1756957861884,-279.207985,0.00021918,2]
[383484587,1756957861893,-279.207985,0.00021918,2]
[383484588,1756957861903,-279.207985,0.00021918,2]
[383484589,1756957861915,-279.207985,0.00021918,2]
[383484590,1756957861925,-279.207985,0.00021918,2]
[383484591,1756957861935,-279.207985,0.00021918,2]
[383484592,1756957861944,-279.207992,0.00021918,2]
[383484593,1756957861954,-275.31421,0.00021918,2]
[383484594,1756957861964,-275.31421,0.00021918,2]
[383484595,1756957861974,-275.31421,0.00021918,2]
[383484596,1756957861983,-275.31421,0.00021918,2]
[383484597,1756957861993,-275.31421,0.00021918,2]
[383484598,1756957862004,-275.31421,0.00021918,2]
[383484599,1756957862014,-275.31421,0.00021918,2]
[383484600,1756957862025,-5000.0,0.00021918,2]
[383484601,1756957862035,-275.31421,0.00021918,2]
[383484602,1756957862045,-275.31421,0.00021918,2]
[383484603,1756957862055,-275.31421,0.00021918,2]
[383484604,1756957862064,-275.31421,0.00021918,2]
[383484605,1756957862074,-275.31421,0.00021918,2]
[383484606,1756957862084,-275.31421,0.00021918,2]
[383484607,1756957862094,-275.31421,0.00021918,2]
[383484608,1756957862104,-275.31421,0.00021918,2]
[383484609,1756957862114,-275.31421,0.00021918,2]
[383484610,1756957862124,-275.31421,0.00021918,2]
[383484611,1756957862135,-275.31421,0.00021918,2]
[383484612,1756957862145,-275.31421,0.00021918,2]
[383484613,1756957862154,-275.314207,0.00021918,2]
[383484614,1756957862165,-180.566704,0.00021918,2]
[383484615,1756957862177,-180.566704,0.00021918,2]
[383484616,1756957862188,-180.566704,0.00021918,2]
[383484617,1756957862198,-180.566704,0.00021918,2]
[383484618,1756957862208,-180.566704,0.00021918,2]
[383484619,1756957862219,-180.566704,0.00021918,2]
[383484620,1756957862229,-180.566704,0.00021918,2]
[383484621,1756957862239,-180.566704,0.00021918,2]
[383484622,1756957862249,-180.566704,0.00021918,2]
[383484623,1756957862259,-180.566704,0.00021918,2]
[383484624,1756957862269,-180.566704,0.00021918,2]
[383484625,1756957862278,-180.566704,0.00021918,2]
[383484626,1756957862288,-180.566704,0.00021918,2]
[383484627,1756957862298,-180.566704,0.00021918,2]
[383484628,1756957862308,-180.566704,0.00021918,2]
[383484629,1756957862318,-180.566704,0.00021918,2]
[383484630,1756957862332,-180.566704,0.00021918,2]
[383484631,1756957862343,-180.566704,0.00021918,2]
[383484632,1756957862354,-180.566704,0.00021918,2]
[383484633,1756957862364,-180.566705,0.00021918,2]
[383484634,1756957862374,-150.0,0.00021918,2]
[383484635,1756957862385,-150.0,0.00021918,2]
[383484636,1756957862397,-150.0,0.00021918,2]
[383484637,1756957862408,-150.0,0.00021918,2]
[383484638,1756957862419,-656.0,0.00021919,2]
[383484639,1756957862429,-500.0,0.00021919,2]
[383484640,1756957862441,-500.0,0.00021919,2]
[383484641,1756957862452,-500.0,0.00021919,2]
[383484642,1756957862463,-150.0,0.00021919,2]
[383484643,1756957862474,-500.0,0.00021919,2]
[383484644,1756957862484,-150.0,0.00021919,2]
[383484645,1756957862495,-500.0,0.00021919,2]
[383484646,1756957862505,-150.0,0.00021919,2]
[383484647,1756957862515,-152.02155019,0.00021919,2]
[383484648,1756957862525,-500.0,0.00021919,2]
[383484649,1756957862536,-500.0,0.00021919,2]
[383484650,1756957862546,-500.0,0.00021919,2]
[383484651,1756957862556,-500.0,0.00021919,2]
[383484652,1756957862566,-468.0,0.00021919,2]
[383484653,1756957862577,-500.0,0.00021919,2]
[383484654,1756957862587,-160.45995756,0.00021919,2]
[383484655,1756957862597,-500.0,0.00021919,2]
[383484656,1756957862607,-500.0,0.00021919,2]
[383484657,1756957862617,-500.0,0.00021919,2]
[383484658,1756957862627,-500.0,0.00021919,2]
[383484659,1756957862636,-290.44079579,0.00021919,2]
[383484660,1756957862646,-569.34351326,0.00021919,2]
[383484661,1756957862656,-500.0,0.00021919,2]
[383484662,1756957862666,-500.0,0.00021919,2]
[383484663,1756957862676,-500.0,0.00021919,2]
[383484664,1756957862686,-500.0,0.00021919,2]
[383484665,1756957862696,-452.0,0.00021919,2]
[383484666,1756957862706,-500.0,0.00021919,2]
[383484667,1756957862717,-350.0,0.00021919,2]
[383484668,1756957862727,-838.72872596,0.00021936,2]
[383484669,1756957862737,-15112.62032627,0.00021938,2]
[383484670,1756957862748,-325.70435747,0.00021939,2]
[383484671,1756957862758,-15112.62032627,0.0002194,2]
[383484672,1756957862768,-838.72872596,0.00021941,2]
[383484673,1756957862778,-168.0,0.0002195,2]
[383484674,1756957862790,-838.72872596,0.00021952,2]
[383484675,1756957862801,-325.70435747,0.00021952,2]
[383484676,1756957862813,-325.70435747,0.00021954,2]
[383484677,1756957863090,-15112.62032627,0.00021966,2]
[383484678,1756957863102,-325.70435747,0.00021967,2]
[383484679,1756957863113,-243.68065055,0.00021969,2]
[383484680,1756957863123,-501.72527821,0.00021973,2]
[383484681,1756957863133,-500.95203951,0.00021973,2]
[383484682,1756957863143,-160.41927983,0.00021973,2]
[383484683,1756957863153,-500.51394059,0.00021973,2]
[383484684,1756957863162,-500.0,0.00021973,2]
[383484685,1756957863172,-500.78371156,0.00021973,2]
[383484686,1756957863183,-500.0,0.00021973,2]
[383484687,1756957863195,-500.0,0.00021973,2]
[383484688,1756957863205,-500.0,0.00021973,2]
[383484689,1756957863215,-500.0,0.00021973,2]
[383484690,1756957863226,-500.0,0.00021973,2]
[383484691,1756957863236,-501.29508638,0.00021973,2]
[383484692,1756957863247,-327.08631527,0.00021973,2]
[383484693,1756957863257,-500.0,0.00021973,2]
[383484694,1756957863267,-500.4602242,0.00021973,2]
[383484695,1756957863483,-500.0,0.00021973,2]
[383484696,1756957863493,-500.0,0.00021973,2]
[383484697,1756957863503,-500.0,0.00021973,2]
[383484698,1756957863515,-500.0,0.00021973,2]
[383484699,1756957863524,-165.39430916,0.00021973,2]
[383484700,1756957863534,-500.0,0.00021973,2]
[383484701,1756957863544,-530.52688843,0.00021973,2]
[383484702,1756957863554,-500.0,0.00021973,2]
[383484703,1756957863563,-500.0,0.00021973,2]
[383484704,1756957863574,-163.61555663,0.00021973,2]
[383484705,1756957863584,-500.0,0.00021973,2]
[383484706,1756957863593,-500.0,0.00021973,2]
[383484707,1756957863603,-500.0,0.00021973,2]
[383484708,1756957863613,-500.0,0.00021973,2]
[383484709,1756957863623,-501.20594384,0.00021973,2]
[383484710,1756957863633,-500.0,0.00021973,2]
[383484711,1756957863643,-250.31197113,0.00021973,2]
[383484712,1756957863652,-500.0,0.00021973,2]
[383484713,1756957863661,-500.0,0.00021973,2]
[383484714,1756957863671,-500.0,0.00021973,2]
[383484715,1756957863681,-500.64200216,0.00021973,2]
[383484716,1756957863690,-500.0,0.00021973,2]
[383484717,1756957863700,-501.17197549,0.00021973,2]
[383484718,1756957863710,-243.68065055,0.00021975,2]
[383484719,1756957863719,-15112.62032627,0.0002198,2]
[383484720,1756957863730,-325.70435747,0.0002198,2]
[383484721,1756957863739,-7101.352031,0.00021985,2]
[383484722,1756957863749,-457.70590453,0.0002199,2]
[383484723,1756957863759,-838.72872596,0.00021991,2]
[383484724,1756957863769,-243.68065055,0.00021991,2]
[383484725,1756957863779,-15112.62032627,0.00021992,2]
[383484726,1756957863789,-243.68065055,0.00021992,2]
[383484727,1756957863799,-243.68065055,0.00021997,2]
[383484728,1756957863809,-838.72872596,0.00021998,2]
[383484729,1756957863819,-729.86,0.00021999,2]
[383484730,1756957863828,-729.86,0.00021999,2]
[383484731,1756957863841,-300.0,0.00021999,2]
[383484732,1756957863850,-300.0,0.00021999,2]
[383484733,1756957863860,-666.0,0.00021999,2]
[383484734,1756957863871,-500.0,0.00021999,2]
[383484735,1756957863881,-500.0,0.00021999,2]
[383484736,1756957863891,-500.0,0.00021999,2]
[383484737,1756957863900,-500.0,0.00021999,2]
[383484738,1756957863912,-150.0,0.00021999,2]
[383484739,1756957863922,-209414.2258478,0.00022,2]
[383484740,1756957863932,-4000.0,0.00022,4]
[383484741,1756957863941,-811.50711618,0.00022,2]
[383484742,1756957863951,-299215.99574879,0.00022,4]
[383484743,1756957863960,-16512.23977305,0.00022,2]
[383484744,1756957863970,-4068.7666958,0.00022,2]
[383484745,1756957863981,-501.39948716,0.00022,5]
[383484746,1756957863991,-779.634505,0.00022,7]
[383484747,1756957864002,-160.97,0.00022,2]
[383484748,1756957864011,-174.25,0.00022,2]
[383484749,1756957864021,-150.0,0.00022,2]
[383484750,1756957864031,-166.53,0.00022,2]
[383484751,1756957864040,-174.25,0.00022,2]
[383484752,1756957864050,-150.0,0.00022,2]
[383484753,1756957864059,-166.53,0.00022,2]
[383484754,1756957864069,-174.25,0.00022,2]
[383484755,1756957864079,-150.0,0.00022,2]
[383484756,1756957864088,-174.25,0.00022,2]
[383484757,1756957864098,-409.65,0.00022,2]
[383484758,1756957864107,-150.0,0.00022,2]
[383484759,1756957864117,-200000.0,0.00022,2]
[383484760,1756957864126,-409.65,0.00022,2]
[383484761,1756957864136,-174.25,0.00022,2]
[383484762,1756957864146,-409.65,0.00022,2]
[383484763,1756957864156,-174.25,0.00022,2]
[383484764,1756957864166,-174.25,0.00022,2]
[383484765,1756957864175,-409.65,0.00022,2]
[383484766,1756957864185,-409.65,0.00022,2]
[383484767,1756957864196,-409.65,0.00022,2]
[383484768,1756957864205,-409.65,0.00022,2]
[383484769,1756957864215,-150.0,0.00022,2]
[383484770,1756957864226,-150.0,0.00022,2]
[383484771,1756957864237,-1175.76,0.00022,2]
[383484772,1756957864247,-409.65,0.00022,2]
[383484773,1756957864256,-440.0,0.00022,2]
[383484774,1756957864266,-150.0,0.00022,2]
[383484775,1756957864275,-150.0,0.00022,2]
[383484776,1756957864285,-173.01,0.00022,2]
[383484777,1756957864295,-150.0,0.00022,2]
[383484778,1756957864304,-409.65,0.00022,2]
[383484779,1756957864314,-150.0,0.00022,2]
[383484780,1756957864323,-150.0,0.00022,2]
[383484781,1756957864333,-5399.0,0.00022004,2]
[383484782,1756957864342,-541.14,0.00022055,2]
[383484783,1756957864351,-470.45,0.00022055,2]
[383484784,1756957864361,-174.25,0.00022055,2]
[383484785,1756957864370,-541.14,0.00022055,2]
[383484786,1756957864379,-150.0,0.00022055,2]
[383484787,1756957864388,-409.65,0.00022055,2]
[383484788,1756957864397,-166.53,0.00022055,2]
[383484789,1756957864407,-541.14,0.00022055,2]
[383484790,1756957864418,-541.14,0.00022055,2]
[383484791,1756957864428,-541.14,0.00022055,2]
[383484792,1756957864437,-166.53,0.00022055,2]
[383484793,1756957864448,-174.25,0.00022055,2]
[383484794,1756957864457,-409.65,0.00022055,2]
[383484795,1756957864467,-150.0,0.00022055,2]
[383484796,1756957864476,-581.73,0.00022055,2]
[383484797,1756957864486,-166.53,0.00022055,2]
[383484798,1756957864495,-174.25,0.00022055,2]
[383484799,1756957864504,-150.0,0.00022055,2]
[383484800,1756957864513,-166.53,0.00022055,2]
[383484801,1756957864523,-409.65,0.00022055,2]
[383484802,1756957864532,-150.0,0.00022055,2]
[383484803,1756957864542,-204.47957427,0.00022055,2]
[383484804,1756957864551,-656.0,0.00022056,2]
[383484805,1756957864561,-500.0,0.00022056,2]
[383484806,1756957864571,-500.0,0.00022056,2]
[383484807,1756957864581,-500.0,0.00022056,2]
[383484808,1756957864590,-150.0,0.00022056,2]
[383484809,1756957864599,-500.0,0.00022056,2]
[383484810,1756957864610,-500.0,0.00022056,2]
[383484811,1756957864620,-153.46913244,0.00022056,2]
[383484812,1756957864629,-150.0,0.00022056,2]
[383484813,1756957864638,-412.22506721,0.00022056,2]
[383484814,1756957864648,-500.0,0.00022056,2]
[383484815,1756957864658,-500.0,0.00022056,2]
[383484816,1756957864667,-359.34158003,0.00022056,2]
[383484817,1756957864677,-468.0,0.00022056,2]
[383484818,1756957864686,-500.0,0.00022056,2]
[383484819,1756957864695,-500.0,0.00022056,2]
[383484820,1756957864704,-500.0,0.00022056,2]
[383484821,1756957864715,-500.0,0.00022056,2]
[383484822,1756957864725,-500.0,0.00022056,2]
[383484823,1756957864735,-444.93130877,0.00022056,2]
[383484824,1756957864747,-500.0,0.00022056,2]
[383484825,1756957864757,-500.0,0.00022056,2]
[383484826,1756957864766,-500.0,0.00022056,2]
[383484827,1756957864776,-452.0,0.00022056,2]
[383484828,1756957864786,-500.0,0.00022056,2]
[383484829,1756957864795,-924.0,0.00022058,2]
[383484830,1756957864804,-3466.653,0.00022058,2]
[383484831,1756957864813,-2069.19,0.00022058,2]
[383484832,1756957864823,-1258.0,0.00022058,2]
[383484833,1756957864834,-1331.906,0.00022058,2]
[383484834,1756957864846,-604.775,0.00022058,2]
[383484835,1756957864858,-571.511,0.00022058,2]
[383484836,1756957864867,-1577.0,0.00022058,2]
[383484837,1756957864878,-1237.556,0.00022058,2]
[383484838,1756957864887,-910.789,0.00022058,2]
[383484839,1756957864896,-817.0,0.00022058,2]
[383484840,1756957864906,-6163.0,0.00022058,2]
[383484841,1756957864916,-2241.0,0.00022058,2]
[383484842,1756957864926,-4163.0,0.00022058,2]
[383484843,1756957864936,-21149.0,0.00022058,2]
[383484844,1756957864946,-724.0,0.00022058,2]
[383484845,1756957864956,-3052.0,0.00022058,2]
[383484846,1756957864966,-2500.0,0.00022064,2]
[383484847,1756957864976,-485.17100638,0.000221,2]
[383484848,1756957864986,-150.0,0.000221,2]
[383484849,1756957864996,-665.02,0.000221,2]
[383484850,1756957865006,-407.48709492,0.00022102,2]
[383484851,1756957865016,-881.37835338,0.00022104,2]
[383484852,1756957865026,-600.0,0.0002211,2]
[383484853,1756957865035,-1000.0,0.00022155,2]
[383484854,1756957865045,-459.62982932,0.00022164,2]
[383484855,1756957865055,-2500.0,0.00022164,2]
[383484856,1756957865065,-500.0,0.00022189,2]
[383484857,1756957865075,-154.69311353,0.00022189,2]
[383484858,1756957865085,-400.0,0.0002219,2]
[383484859,1756957865095,-400.0,0.0002219,2]
[383484860,1756957865105,-400.0,0.0002219,2]
[383484861,1756957865114,-402.17904203,0.0002219,2]
[383484862,1756957865123,-400.0,0.0002219,2]
[383484863,1756957865134,-400.0,0.0002219,2]
[383484864,1756957865143,-400.0,0.0002219,2]
[383484865,1756957865152,-400.0,0.0002219,2]
[383484866,1756957865162,-400.0,0.0002219,2]
[383484867,1756957865171,-400.0,0.0002219,2]
[383484868,1756957865181,-400.0,0.0002219,2]
[383484869,1756957865191,-400.0,0.0002219,2]
[383484870,1756957865200,-400.0,0.0002219,2]
[383484871,1756957865210,-400.0,0.0002219,2]
[383484872,1756957865219,-400.0,0.0002219,2]
[383484873,1756957865229,-400.0,0.0002219,2]
[383484874,1756957865239,-400.0,0.0002219,2]
[383484875,1756957865248,-400.0,0.0002219,2]
[383484876,1756957865257,-400.0,0.0002219,2]
[383484877,1756957865267,-805.10492619,0.0002219,2]
[383484878,1756957865277,-400.0,0.0002219,2]
[383484879,1756957865287,-400.0,0.0002219,2]
[383484880,1756957865296,-400.0,0.0002219,2]
[383484881,1756957865306,-403.47808154,0.0002219,2]
[383484882,1756957865316,-400.0,0.0002219,2]
[383484883,1756957865326,-400.0,0.0002219,2]
[383484884,1756957865336,-400.0,0.0002219,2]
[383484885,1756957865346,-400.0,0.0002219,2]
[383484886,1756957865355,-400.0,0.0002219,2]
[383484887,1756957865364,-400.0,0.0002219,2]
[383484888,1756957865373,-400.0,0.0002219,2]
[383484889,1756957865382,-400.0,0.0002219,2]
[383484890,1756957865392,-400.0,0.0002219,2]
[383484891,1756957865401,-400.0,0.0002219,2]
[383484892,1756957865410,-400.0,0.0002219,2]
[383484893,1756957865421,-400.0,0.0002219,2]
[383484894,1756957865430,-400.0,0.0002219,2]
[383484895,1756957865440,-400.0,0.0002219,2]
[383484896,1756957865449,-400.0,0.0002219,2]
[383484897,1756957865459,-400.0,0.0002219,2]
[383484898,1756957865468,-400.0,0.0002219,2]
[383484899,1756957865477,-400.0,0.0002219,2]
[383484900,1756957865486,-400.0,0.0002219,2]
[383484901,1756957865496,-400.0,0.0002219,2]
[383484902,1756957865505,-400.0,0.0002219,2]
[383484903,1756957865514,-404.2483718,0.0002219,2]
[383484904,1756957865523,-400.0,0.0002219,2]
[383484905,1756957865532,-400.0,0.0002219,2]
[383484906,1756957865541,-400.0,0.0002219,2]
[383484907,1756957865550,-400.0,0.0002219,2]
[383484908,1756957865560,-729.86,0.0002219,2]
[383484909,1756957865569,-400.0,0.0002219,2]
[383484910,1756957865578,-400.0,0.0002219,2]
[383484911,1756957865654,-400.0,0.0002219,2]
[383484912,1756957865663,-404.03165821,0.0002219,2]
[383484913,1756957865673,-400.0,0.0002219,2]
[383484914,1756957865682,-409.83191369,0.0002219,2]
[383484915,1756957865692,-400.0,0.0002219,2]
[383484916,1756957865701,-402.15158799,0.0002219,2]
[383484917,1756957865710,-400.0,0.0002219,2]
[383484918,1756957865720,-414.63531385,0.0002219,2]
[383484919,1756957865734,-400.0,0.0002219,2]
[383484920,1756957865743,-400.0,0.0002219,2]
[383484921,1756957865753,-500.0,0.0002219,2]
[383484922,1756957865762,-179.12893633,0.0002219,2]
[383484923,1756957865772,-500.0,0.0002219,2]
[383484924,1756957865781,-300.0,0.0002219,2]
[383484925,1756957865791,-300.0,0.0002219,2]
[383484926,1756957865801,-410.4632369,0.0002219,2]
[383484927,1756957865810,-402.48918014,0.00022191,2]
[383484928,1756957865820,-400.0,0.00022191,2]
[383484929,1756957865829,-400.0,0.00022191,2]
[383484930,1756957865842,-402.34775627,0.00022191,2]
[383484931,1756957865851,-400.0,0.00022191,2]
[383484932,1756957865860,-400.0,0.00022191,2]
[383484933,1756957865869,-400.0,0.00022191,2]
[383484934,1756957865880,-403.71783169,0.00022191,2]
[383484935,1756957865889,-400.0,0.00022191,2]
[383484936,1756957865898,-402.090457,0.00022191,2]
[383484937,1756957865910,-460.0,0.00022191,2]
[383484938,1756957865919,-400.0,0.00022191,2]
[383484939,1756957865928,-400.0,0.00022191,2]
[383484940,1756957865937,-401.78909166,0.00022191,2]
[383484941,1756957865947,-402.6942866,0.00022191,2]
[383484942,1756957865957,-400.0,0.00022191,2]
[383484943,1756957865966,-413.19389053,0.00022191,2]
[383484944,1756957865976,-400.0,0.00022191,2]
[383484945,1756957865985,-400.0,0.00022191,2]
[383484946,1756957865994,-401.47658901,0.00022191,2]
[383484947,1756957866003,-400.0,0.00022191,2]
[383484948,1756957866016,-405.36670514,0.00022191,2]
[383484949,1756957866025,-406.85449066,0.00022191,2]
[383484950,1756957866034,-406.71190684,0.00022191,2]
[383484951,1756957866043,-400.0,0.00022191,2]
[383484952,1756957866052,-400.0,0.00022191,2]
[383484953,1756957866062,-400.0,0.00022191,2]
[383484954,1756957866071,-400.0,0.00022191,2]
[383484955,1756957866080,-406.01718662,0.00022191,2]
[383484956,1756957866090,-400.0,0.00022191,2]
[383484957,1756957866099,-403.0457783,0.00022191,2]
[383484958,1756957866108,-400.0,0.00022191,2]
[383484959,1756957866117,-400.0,0.00022191,2]
[383484960,1756957866127,-402.82599791,0.00022191,2]
[383484961,1756957866136,-400.0,0.00022191,2]
[383484962,1756957866145,-400.0,0.00022191,2]
[383484963,1756957866154,-400.0,0.00022191,2]
[383484964,1756957866165,-400.0,0.00022191,2]
[383484965,1756957866175,-403.0755035,0.00022191,2]
[383484966,1756957866184,-400.0,0.00022191,2]
[383484967,1756957866193,-400.0,0.00022191,2]
[383484968,1756957866204,-400.0,0.00022191,2]
[383484969,1756957866213,-400.0,0.00022191,2]
[383484970,1756957866222,-400.0,0.00022191,2]
[383484971,1756957866231,-405.94571377,0.00022191,2]
[383484972,1756957866241,-400.0,0.00022191,2]
[383484973,1756957866251,-400.0,0.00022191,2]
[383484974,1756957866260,-400.0,0.00022191,2]
[383484975,1756957866269,-400.0,0.00022191,2]
[383484976,1756957866278,-406.45948702,0.00022191,2]
[383484977,1756957866287,-400.0,0.00022191,2]
[383484978,1756957866296,-403.25858234,0.00022191,2]
[383484979,1756957866305,-404.57719068,0.00022191,2]
[383484980,1756957866315,-402.34916431,0.00022191,2]
[383484981,1756957866324,-400.0,0.00022191,2]
[383484982,1756957866335,-400.0,0.00022191,2]
[383484983,1756957866347,-400.0,0.00022191,2]
[383484984,1756957866356,-400.0,0.00022191,2]
[383484985,1756957866365,-400.0,0.00022191,2]
[383484986,1756957866374,-400.0,0.00022191,2]
[383484987,1756957866383,-400.0,0.00022191,2]
[383484988,1756957866392,-400.0,0.00022191,2]
[383484989,1756957866401,-400.0,0.00022191,2]
[383484990,1756957866410,-400.0,0.00022191,2]
[383484991,1756957866420,-400.0,0.00022191,2]
[383484992,1756957866429,-400.0,0.00022191,2]
[383484993,1756957866439,-400.0,0.00022191,2]
[383484994,1756957866448,-400.0,0.00022191,2]
[383484995,1756957866457,-400.0,0.00022191,2]
[383484996,1756957866467,-400.0,0.00022191,2]
[383484997,1756957866476,-400.0,0.00022191,2]
[383484998,1756957866486,-400.0,0.00022191,2]
[383484999,1756957866495,-400.0,0.00022191,2]
[383485000,1756957866504,-400.0,0.00022191,2]
[383485001,1756957866513,-400.0,0.00022191,2]
[383485002,1756957866522,-400.0,0.00022191,2]
[383485003,1756957866532,-400.0,0.00022191,2]
[383485004,1756957866541,-400.0,0.00022191,2]
[383485005,1756957866551,-400.0,0.00022191,2]
[383485006,1756957866560,-400.0,0.00022191,2]
[383485007,1756957866570,-400.0,0.00022191,2]
[383485008,1756957866579,-400.0,0.00022191,2]
[383485009,1756957866590,-400.0,0.00022191,2]
[383485010,1756957866598,-400.0,0.00022191,2]
[383485011,1756957866607,-400.0,0.00022191,2]
[383485012,1756957866619,-400.0,0.00022191,2]
[383485013,1756957866630,-400.0,0.00022191,2]
[383485014,1756957866640,-400.0,0.00022191,2]
[383485015,1756957866650,-400.0,0.00022191,2]
[383485016,1756957866660,-400.0,0.00022191,2]
[383485017,1756957866668,-402.81185272,0.00022191,2]
[383485018,1756957866678,-400.0,0.00022191,2]
[383485019,1756957866687,-400.0,0.00022191,2]
[383485020,1756957866696,-400.0,0.00022191,2]
[383485021,1756957866705,-400.0,0.00022191,2]
[383485022,1756957866714,-400.0,0.00022191,2]
[383485023,1756957866724,-405.71547006,0.00022191,2]
[383485024,1756957866733,-400.0,0.00022191,2]
[383485025,1756957866742,-400.0,0.00022191,2]
[383485026,1756957866753,-400.0,0.00022191,2]
[383485027,1756957866762,-411.81142528,0.00022191,2]
[383485028,1756957866771,-400.0,0.00022191,2]
[383485029,1756957866781,-424.88,0.00022191,2]
[383485030,1756957866790,-400.0,0.00022191,2]
[383485031,1756957866800,-400.0,0.00022191,2]
[383485032,1756957866815,-400.0,0.00022191,2]
[383485033,1756957866826,-400.0,0.00022191,2]
[383485034,1756957866839,-400.0,0.00022191,2]
[383485035,1756957866848,-404.28866568,0.00022191,2]
[383485036,1756957866858,-400.0,0.00022191,2]
[383485037,1756957866867,-403.13800929,0.00022191,2]
[383485038,1756957866877,-471.73622934,0.00022191,2]
[383485039,1756957866887,-400.0,0.00022191,2]
[383485040,1756957866896,-406.73016368,0.00022191,2]
[383485041,1756957866906,-400.0,0.00022191,2]
[383485042,1756957866916,-400.0,0.00022191,2]
[383485043,1756957866927,-400.0,0.00022191,2]
[383485044,1756957866936,-402.58071098,0.00022191,2]
[383485045,1756957866946,-400.0,0.00022191,2]
[383485046,1756957866955,-400.0,0.00022191,2]
[383485047,1756957866965,-400.0,0.00022191,2]
[383485048,1756957866974,-400.0,0.00022191,2]
[383485049,1756957866983,-400.0,0.00022191,2]
[383485050,1756957866993,-205.1963403,0.00022191,2]
[383485051,1756957867002,-400.0,0.00022191,2]
[383485052,1756957867011,-400.0,0.00022191,2]
[383485053,1756957867020,-400.0,0.00022191,2]
[383485054,1756957867030,-400.0,0.00022191,2]
[383485055,1756957867040,-407.75119627,0.00022191,2]
[383485056,1756957867049,-400.0,0.00022191,2]